fUST/lending_fUST_20251218
["ID","MTS","AMOUNT","RATE_DAILY","PERIOD"]
[399005822,1766065178953,124.0043306,7.321e-05,2]
[399005823,1766065178980,81.3656694,7.321e-05,2]
[399005824,1766065179391,273.83,7.639e-05,2]
[399005825,1766065179488,300.0,0.00016874,120]
[399005826,1766065179820,342.28,7.957e-05,2]
[399005827,1766065180234,410.74,8.275e-05,2]
[399005828,1766065180640,479.2,8.594e-05,2]
[399005829,1766065181064,547.65,8.912e-05,2]
[399005830,1766065181225,300.0,0.00016874,120]
[399005831,1766065181735,616.11,9.23e-05,2]
[399005832,1766065182151,684.57,9.549e-05,2]
[399005833,1766065183208,300.0,0.00016874,120]
[399005834,1766065184672,300.0,0.00016874,120]
[399005835,1766065186415,284.1,0.00016874,120]
[399005836,1766065254893,150.0,8.275e-05,2]
[399005837,1766065255495,150.0,8.669e-05,2]
[399005838,1766065255963,150.0,9.064e-05,2]
[399005839,1766065256380,150.0,9.458e-05,2]
[399005840,1766065256809,150.0,9.852e-05,2]
[399005841,1766065257207,150.0,0.00010246,2]
[399005842,1766065257609,150.0,0.0001064,2]
[399005843,1766065258025,154.66,0.00011034,2]
[399005844,1766065258461,173.99,0.00011428,2]
[399005845,1766065282821,174.198805,0.00013699,2]
[399005847,1766065339865,-237.55412264,0.00019517,2]
[399005848,1766065343510,-242.36959828,0.00019517,2]
[399005850,1766065452137,150.0,8.279e-05,2]
[399005851,1766065452555,150.0,8.673e-05,2]
[399005852,1766065452953,150.0,9.067e-05,2]
[399005853,1766065453838,150.0,9.461e-05,2]
[399005854,1766065454259,150.0,9.855e-05,2]
[399005855,1766065454686,150.0,0.0001025,2]
[399005856,1766065462539,302.23482017,0.00018,2]
[399005857,1766065520209,150.0,8.346e-05,2]
[399005858,1766065520632,150.0,8.744e-05,2]
[399005859,1766065521042,150.0,9.141e-05,2]
[399005860,1766065521565,150.0,9.539e-05,2]
[399005861,1766065521866,150.0,9.936e-05,2]
[399005862,1766065522315,150.0,0.00010333,2]
[399005863,1766065522704,150.0,0.00010731,2]
[399005864,1766065523128,150.0,0.00011128,2]
[399005877,1766065554149,300.0,0.00016226,120]
[399005878,1766065555661,300.0,0.00016226,120]
[399005879,1766065557378,300.0,0.00016226,120]
[399005880,1766065559449,300.0,0.00016226,120]
[399005881,1766065561310,300.0,0.00016226,120]
[399005882,1766065562998,176.82,0.00016226,120]
[399005884,1766065588096,150.0,8.341e-05,2]
[399005885,1766065588515,150.0,8.739e-05,2]
[399005886,1766065588927,150.0,9.136e-05,2]
[399005887,1766065589345,150.0,9.533e-05,2]
[399005888,1766065589746,150.0,9.93e-05,2]
[399005889,1766065618138,-302.23482017,0.00018903,9]
[399005890,1766065618159,-44.51293488,0.00018938,2]
[399005891,1766065654205,150.0,8.334e-05,2]
[399005892,1766065654653,150.0,8.731e-05,2]
[399005893,1766065655124,150.0,9.128e-05,2]
[399005894,1766065655546,150.0,9.525e-05,2]
[399005895,1766065655972,150.0,9.922e-05,2]
[399005896,1766065656377,150.0,0.00010319,2]
[399005897,1766065657318,150.0,0.00010716,2]
[399005898,1766065657718,168.11,0.00011113,2]
[399005899,1766065658152,189.12,0.00011509,2]
[399005900,1766065658628,210.13,0.00011906,2]
[399005901,1766065723197,150.0,8.231e-05,2]
[399005902,1766065723612,150.0,8.623e-05,2]
[399005903,1766065724009,150.0,9.015e-05,2]
[399005904,1766065724415,150.0,9.407e-05,2]
[399005905,1766065725307,150.0,9.799e-05,2]
[399005906,1766065725875,150.0,0.00010191,2]
[399005907,1766065743799,500.0,0.00013273,2]
[399005908,1766065743848,1027.77596645,0.00013821,2]
[399005909,1766065746398,300.0,0.00016222,120]
[399005910,1766065774654,-300.00887776,0.00018562,2]
[399005911,1766065790772,150.0,8.226e-05,2]
[399005912,1766065791221,150.0,8.618e-05,2]
[399005913,1766065809649,150.0,4.9e-07,2]
[399005914,1766065810697,150.0,4.9e-07,2]
[399005922,1766065831699,-4699.99112224,0.00018562,2]
[399005923,1766065831709,-696.0,0.00018562,2]
[399005924,1766065831718,-5000.0,0.00018749,2]
[399005925,1766065831727,-150.0,0.00018844,2]
[399005926,1766065831736,-300.0,0.00018936,2]
[399005927,1766065831745,-243.95094926,0.00019368,5]
[399005928,1766065831754,-302.23482017,0.00019806,17]
[399005929,1766065831764,-180.0,0.00020348,25]
[399005930,1766065831773,-180.0,0.00020348,25]
[399005931,1766065831783,-180.0,0.00020348,25]
[399005932,1766065831792,-307.57123236,0.00020348,25]
[399005933,1766065831801,-235.77460328,0.00020545,25]
[399005934,1766065831810,-42.81430168,0.00020547,25]
[399005935,1766065831819,-273.19444444,0.00020547,25]
[399005936,1766065831828,-420.0,0.00020642,2]
[399005937,1766065831837,-302.23482017,0.00020709,25]
[399005938,1766065831846,-388.886,0.00020737,2]
[399005939,1766065831855,-313.579247,0.00020737,2]
[399005940,1766065831865,-313.579247,0.00020737,8]
[399005941,1766065831873,-313.579247,0.00020737,14]
[399005942,1766065831883,-313.579247,0.00020737,20]
[399005943,1766065831896,-313.579247,0.00020737,26]
[399005944,1766065831907,-313.579247,0.00020737,33]
[399005945,1766065831915,-313.579247,0.00020737,39]
[399005946,1766065831925,-313.579247,0.00020737,45]
[399005947,1766065831934,-313.579247,0.00020737,51]
[399005948,1766065831943,-313.579247,0.00020737,57]
[399005949,1766065831952,-313.579247,0.00020737,64]
[399005950,1766065831961,-313.579247,0.00020737,70]
[399005951,1766065831971,-313.579247,0.00020737,76]
[399005952,1766065831980,-313.579247,0.00020737,82]
[399005953,1766065831988,-313.579247,0.00020737,88]
[399005954,1766065831997,-313.579247,0.00020737,95]
[399005955,1766065832007,-313.579247,0.00020737,101]
[399005956,1766065832015,-313.579247,0.00020737,107]
[399005957,1766065832025,-313.579247,0.00020737,113]
[399005958,1766065832034,-313.579247,0.00020737,120]
[399005959,1766065832043,-2225.0,0.00020771,120]
[399005960,1766065832052,-1893.0,0.00020771,120]
[399005961,1766065832061,-177.0,0.00020844,2]
[399005962,1766065832070,-497.0,0.000211,99]
[399005963,1766065832079,-234.0,0.000211,99]
[399005964,1766065832088,-1213.38301492,0.00021177,120]
[399005965,1766065832098,-267.50156102,0.00021394,32]
[399005966,1766065832107,-204.82449094,0.00021394,32]
[399005967,1766065832117,-235.77460328,0.00021394,32]
[399005968,1766065832126,-458.2552902,0.00021397,32]
[399005969,1766065832135,-273.19444444,0.00021397,32]
[399005970,1766065832144,-1000.0,0.000215,120]
[399005973,1766065832154,-1112.0,0.00021601,120]
[399005974,1766065832164,-947.0,0.00021601,120]
[399005977,1766065832174,-667.0,0.00021601,120]
[399005978,1766065832183,-500.0,0.00021601,120]
[399005981,1766065832193,-302.23482017,0.00021612,32]
[399005983,1766065832203,-2225.0,0.0002181,120]
[399005984,1766065832213,-1893.0,0.0002181,120]
[399005986,1766065832222,-235.77460328,0.00022242,40]
[399005988,1766065832232,-458.2552902,0.00022246,40]
[399005990,1766065832242,-273.19444444,0.00022246,40]
[399005992,1766065832251,-180.0,0.00022383,25]
[399005994,1766065832261,-180.0,0.00022383,25]
[399005996,1766065832270,-205.04748824,0.00022383,25]
[399005998,1766065832279,-338.47577341,0.00022445,2]
[399006000,1766065832288,-587.0,0.00022501,2]
[399006002,1766065832298,-302.23482017,0.00022515,40]
[399006004,1766065832307,-1112.0,0.00022681,120]
[399006006,1766065832316,-947.0,0.00022681,120]
[399006008,1766065832325,-667.0,0.00022681,120]
[399006010,1766065832334,-300.0,0.00022686,10]
[399006012,1766065832344,-300.0,0.00022686,10]
[399006014,1766065832353,-300.0,0.00022686,10]
[399006016,1766065832365,-300.0,0.00022686,10]
[399006018,1766065832374,-300.0,0.00022686,10]
[399006020,1766065832384,-300.0,0.00022686,10]
[399006021,1766065832394,-300.0,0.00022686,10]
[399006023,1766065832404,-300.0,0.00022686,10]
[399006025,1766065832413,-300.0,0.00022686,10]
[399006028,1766065832424,-300.0,0.00022686,10]
[399006030,1766065832433,-300.0,0.00022686,10]
[399006031,1766065832443,-300.0,0.00022686,10]
[399006033,1766065832453,-300.0,0.00022686,10]
[399006035,1766065832462,-300.0,0.00022686,10]
[399006037,1766065832471,-300.0,0.00022686,10]
[399006039,1766065832480,-215.91,0.00022815,46]
[399006041,1766065832490,-204.0,0.00022844,2]
[399006043,1766065832499,-2225.0,0.000229,120]
[399006045,1766065832508,-1893.0,0.000229,120]
[399006047,1766065832518,-340.5530209,0.0002302,2]
[399006049,1766065832528,-267.50156102,0.00023091,48]
[399006051,1766065832538,-204.82449094,0.00023091,48]
[399006053,1766065832547,-235.77460328,0.00023091,48]
[399006055,1766065832557,-458.2552902,0.00023095,48]
[399006057,1766065832566,-273.19444444,0.00023095,48]
[399006059,1766065832576,-338.47577341,0.00023268,2]
[399006061,1766065832586,-500.0,0.00023417,2]
[399006063,1766065832595,-500.0,0.00023417,2]
[399006065,1766065832604,-500.0,0.00023417,2]
[399006067,1766065832614,-500.0,0.00023417,2]
[399006069,1766065832624,-500.0,0.00023417,2]
[399006071,1766065832633,-500.0,0.00023417,2]
[399006073,1766065832642,-500.0,0.00023417,2]
[399006075,1766065832652,-500.0,0.00023417,2]
[399006077,1766065832661,-500.0,0.00023417,2]
[399006079,1766065832671,-500.0,0.00023417,2]
[399006081,1766065832680,-500.0,0.00023417,2]
[399006083,1766065832690,-500.0,0.00023417,2]
[399006086,1766065832700,-479.04362566,0.00023417,2]
[399006088,1766065832709,-500.0,0.00023417,2]
[399006090,1766065832719,-500.0,0.00023417,2]
[399006092,1766065832728,-500.0,0.00023417,2]
[399006094,1766065832737,-500.0,0.00023417,2]
[399006096,1766065832746,-500.0,0.00023417,2]
[399006098,1766065832755,-500.0,0.00023417,2]
[399006100,1766065832766,-500.0,0.00023417,2]
[399006102,1766065832776,-500.0,0.00023417,2]
[399006104,1766065832785,-500.0,0.00023417,2]
[399006106,1766065832794,-500.0,0.00023417,2]
[399006108,1766065832804,-500.0,0.00023417,2]
[399006110,1766065832813,-500.0,0.00023417,2]
[399006111,1766065832822,-272.33519372,0.00023417,2]
[399006113,1766065832831,-500.0,0.00023417,2]
[399006115,1766065832842,-500.0,0.00023417,2]
[399006117,1766065832851,-500.0,0.00023417,2]
[399006119,1766065832862,-500.0,0.00023417,2]
[399006120,1766065832871,-500.0,0.00023417,2]
[399006122,1766065832881,-500.0,0.00023417,2]
[399006124,1766065832890,-500.0,0.00023417,2]
[399006125,1766065832901,-500.0,0.00023417,2]
[399006126,1766065832910,-500.0,0.00023417,2]
[399006127,1766065832920,-500.0,0.00023417,2]
[399006128,1766065832930,-500.0,0.00023417,2]
[399006129,1766065832941,-500.0,0.00023417,2]
[399006130,1766065832950,-500.0,0.00023417,2]
[399006131,1766065832960,-500.0,0.00023417,2]
[399006132,1766065832970,-500.0,0.00023417,2]
[399006133,1766065832981,-500.0,0.00023417,2]
[399006134,1766065832991,-500.0,0.00023417,2]
[399006135,1766065833000,-500.0,0.00023417,2]
[399006136,1766065833011,-500.0,0.00023417,2]
[399006137,1766065833021,-500.0,0.00023417,2]
[399006138,1766065833031,-500.0,0.00023417,2]
[399006139,1766065833042,-500.0,0.00023417,2]
[399006140,1766065833053,-500.0,0.00023417,2]
[399006141,1766065833063,-500.0,0.00023417,2]
[399006142,1766065833074,-408.73516138,0.00023417,2]
[399006143,1766065833084,-339.19903336,0.00023417,2]
[399006144,1766065833097,-160.80096664,0.00023417,2]
[399006145,1766065833107,-202.84903336,0.00023417,2]
[399006146,1766065833120,-297.15096664,0.00023417,2]
[399006147,1766065833130,-221.50376775,0.00023417,2]
[399006164,1766065837611,-635.28274056,0.00018376,2]
[399006165,1766065837628,-568.0,0.00021601,120]
[399006166,1766065837637,-568.0,0.00022681,120]
[399006167,1766065837647,-278.49623225,0.00023417,2]
[399006168,1766065837656,-500.0,0.00023417,2]
[399006169,1766065837666,-500.0,0.00023417,2]
[399006170,1766065837675,-88.2635813,0.00023417,2]
[399006171,1766065837742,-205.55975484,0.00023417,2]
[399006172,1766065837754,-206.17666386,0.00023417,2]
[399006173,1766065837763,-500.0,0.00023417,2]
[399006174,1766065837773,-500.0,0.00023417,2]
[399006175,1766065837783,-500.0,0.00023417,2]
[399006176,1766065837792,-80.72325701,0.00023417,2]
[399006233,1766065839759,-419.27674299,0.00023417,2]
[399006235,1766065839769,-33.37228901,0.00023417,2]
[399006249,1766065840126,-3e-08,0.00023417,2]
[399006250,1766065840140,-433.33155169,0.00023417,2]
[399006251,1766065840152,-33.29615927,0.00023417,2]
[399006252,1766065840162,-500.0,0.00023417,2]
[399006253,1766065840172,-500.0,0.00023417,2]
[399006254,1766065840182,-500.0,0.00023417,2]
[399006255,1766065840192,-500.0,0.00023417,2]
[399006256,1766065840203,-500.0,0.00023417,2]
[399006257,1766065840214,-158.05538603,0.00023417,2]
[399006258,1766065840466,-341.94461397,0.00023417,2]
[399006259,1766065840476,-500.0,0.00023417,2]
[399006260,1766065840486,-500.0,0.00023417,2]
[399006261,1766065840495,-500.0,0.00023417,2]
[399006262,1766065840504,-500.0,0.00023417,2]
[399006263,1766065840514,-500.0,0.00023417,2]
[399006264,1766065840523,-500.0,0.00023417,2]
[399006265,1766065840533,-500.0,0.00023417,2]
[399006266,1766065840543,-500.0,0.00023417,2]
[399006267,1766065840552,-500.0,0.00023417,2]
[399006268,1766065840562,-376.30077496,0.00023417,2]
[399006269,1766065840572,-500.0,0.00023417,2]
[399006270,1766065840586,-500.0,0.00023417,2]
[399006271,1766065840596,-500.0,0.00023417,2]
[399006272,1766065840608,-500.0,0.00023417,2]
[399006273,1766065840620,-161.23784498,0.00023417,2]
[399006274,1766065840632,-338.76215502,0.00023417,2]
[399006275,1766065840641,-500.0,0.00023417,2]
[399006276,1766065840651,-500.0,0.00023417,2]
[399006277,1766065840661,-201.73585022,0.00023417,2]
[399006278,1766065840673,-298.26414978,0.00023417,2]
[399006279,1766065840682,-500.0,0.00023417,2]
[399006280,1766065840693,-250.0,0.00023417,2]
[399006281,1766065840702,-500.0,0.00023417,2]
[399006282,1766065840713,-451.78092022,0.00023417,2]
[399006286,1766065842735,-48.21907978,0.00023417,2]
[399006287,1766065842744,-500.0,0.00023417,2]
[399006288,1766065842754,-500.0,0.00023417,2]
[399006289,1766065842762,-86.82616555,0.00023417,2]
[399006290,1766065842773,-289.54641168,0.00023417,2]
[399006291,1766065842846,-123.62742277,0.00023417,2]
[399006292,1766065842856,-178.61645237,0.00023417,2]
[399006293,1766065842865,-500.0,0.00023417,2]
[399006294,1766065842875,-500.0,0.00023417,2]
[399006295,1766065842884,-500.0,0.00023417,2]
[399006296,1766065842893,-500.0,0.00023417,2]
[399006297,1766065842904,-500.0,0.00023417,2]
[399006298,1766065842914,-500.0,0.00023417,2]
[399006300,1766065842923,-500.0,0.00023417,2]
[399006302,1766065842932,-500.0,0.00023417,2]
[399006304,1766065842941,-500.0,0.00023417,2]
[399006306,1766065842951,-500.0,0.00023417,2]
[399006308,1766065842961,-500.0,0.00023417,2]
[399006309,1766065842970,-500.0,0.00023417,2]
[399006310,1766065842980,-500.0,0.00023417,2]
[399006311,1766065842990,-500.0,0.00023417,2]
[399006312,1766065843000,-500.0,0.00023417,2]
[399006313,1766065843010,-500.0,0.00023417,2]
[399006314,1766065843020,-500.0,0.00023417,2]
[399006315,1766065843031,-500.0,0.00023417,2]
[399006316,1766065843041,-500.0,0.00023417,2]
[399006317,1766065843052,-500.0,0.00023417,2]
[399006318,1766065843062,-500.0,0.00023417,2]
[399006319,1766065843073,-500.0,0.00023417,2]
[399006320,1766065843083,-500.0,0.00023417,2]
[399006321,1766065843249,-500.0,0.00023417,2]
[399006322,1766065843259,-500.0,0.00023417,2]
[399006323,1766065843269,-500.0,0.00023417,2]
[399006324,1766065843279,-260.7000861,0.00023417,2]
[399006325,1766065843289,-500.0,0.00023417,2]
[399006326,1766065843298,-500.0,0.00023417,2]
[399006327,1766065843307,-500.0,0.00023417,2]
[399006328,1766065843316,-500.0,0.00023417,2]
[399006329,1766065843326,-500.0,0.00023417,2]
[399006330,1766065843336,-500.0,0.00023417,2]
[399006331,1766065843345,-500.0,0.00023417,2]
[399006332,1766065843354,-500.0,0.00023417,2]
[399006333,1766065843363,-500.0,0.00023417,2]
[399006334,1766065843374,-500.0,0.00023417,2]
[399006335,1766065843383,-500.0,0.00023417,2]
[399006336,1766065843392,-500.0,0.00023417,2]
[399006337,1766065843401,-500.0,0.00023417,2]
[399006338,1766065843410,-550.0,0.00023417,2]
[399006339,1766065843419,-500.0,0.00023417,2]
[399006340,1766065843428,-500.0,0.00023417,2]
[399006341,1766065843437,-302.23482017,0.00023418,48]
[399006342,1766065843446,-600.0,0.00023791,10]
[399006343,1766065843455,-1112.0,0.00023815,120]
[399006344,1766065843466,-947.0,0.00023815,120]
[399006345,1766065843476,-667.0,0.00023815,120]
[399006346,1766065843485,-568.0,0.00023815,120]
[399006347,1766065843493,-235.77460328,0.00023939,56]
[399006348,1766065843502,-458.2552902,0.00023944,56]
[399006349,1766065843511,-273.19444444,0.00023944,56]
[399006350,1766065843521,-2225.0,0.00024045,120]
[399006351,1766065843530,-1893.0,0.00024045,120]
[399006352,1766065843539,-338.47577341,0.00024092,2]
[399006353,1766065843548,-302.23482017,0.00024321,56]
[399006354,1766065843557,-204.82449094,0.00024787,63]
[399006355,1766065843566,-267.50156102,0.00024787,63]
[399006356,1766065843576,-235.77460328,0.00024787,63]
[399006357,1766065843584,-458.2552902,0.00024793,63]
[399006358,1766065843593,-273.19444444,0.00024793,63]
[399006359,1766065843602,-231.0,0.00024844,2]
[399006360,1766065843611,-220.37165635,0.00024853,2]
[399006361,1766065843621,-224.10142027,0.00024916,2]
[399006591,1766065845879,-1276.96325321,0.00023183,2]
[399006596,1766065845926,-253.7425319,0.00023183,2]
[399006735,1766065847232,-3469.29421489,0.00023183,2]
[399006738,1766065847242,-158.72,0.00023417,2]
[399006740,1766065847251,-114.37435314,0.00024916,2]
[399006741,1766065847261,-1112.0,0.00025005,120]
[399006743,1766065847270,-947.0,0.00025005,120]
[399006746,1766065847280,-667.0,0.00025005,120]
[399006747,1766065847291,-568.0,0.00025005,120]
[399006749,1766065847300,-302.23482017,0.00025224,63]
[399006752,1766065847310,-2225.0,0.00025248,120]
[399006753,1766065847319,-1893.0,0.00025248,120]
[399006754,1766065847328,-458.9,0.000253,7]
[399006755,1766065847337,-235.77460328,0.00025636,71]
[399006756,1766065847346,-458.2552902,0.00025642,71]
[399006757,1766065847355,-273.19444444,0.00025642,71]
[399006758,1766065847365,-338.81424918,0.0002574,2]
[399006759,1766065847375,-302.23482017,0.00026127,71]
[399006760,1766065847383,-720.0,0.0002617,30]
[399006761,1766065847393,-273.76487323,0.00026246,2]
[399006762,1766065847402,-667.0,0.00026256,120]
[399006763,1766065847411,-568.0,0.00026256,120]
[399006764,1766065847420,-204.82449094,0.00026484,79]
[399006765,1766065847429,-267.50156102,0.00026484,79]
[399006766,1766065847538,-235.77460328,0.00026484,79]
[399006767,1766065847547,-458.2552902,0.00026491,79]
[399006768,1766065847556,-273.19444444,0.00026491,79]
[399006769,1766065847566,-158.93569192,0.00026844,2]
[399006770,1766065847574,-302.23482017,0.0002703,79]
[399006771,1766065847583,-612.38244218,0.00027146,2]
[399006772,1766065847592,-235.77460328,0.00027333,86]
[399006773,1766065847601,-458.2552902,0.0002734,86]
[399006774,1766065847610,-273.19444444,0.0002734,86]
[399006776,1766065847619,-667.0,0.00027568,120]
[399006778,1766065847631,-568.0,0.00027568,120]
[399006780,1766065847640,-302.23482017,0.00027933,86]
[399006782,1766065847649,-204.82449094,0.00028181,94]
[399006784,1766065847658,-267.50156102,0.00028181,94]
[399006786,1766065847667,-235.77460328,0.00028181,94]
[399006788,1766065847676,-458.2552902,0.00028189,94]
[399006790,1766065847685,-273.19444444,0.00028189,94]
[399006792,1766065847695,-864.0,0.00028787,30]
[399006794,1766065847703,-302.23482017,0.00028836,94]
[399006796,1766065847712,-667.0,0.00028947,120]
[399006798,1766065847721,-568.0,0.00028947,120]
[399006800,1766065847730,-280.77984139,0.00028949,2]
[399006802,1766065847739,-500.0,0.00028949,2]
[399006804,1766065847748,-500.0,0.00028949,2]
[399006806,1766065847757,-296.49200061,0.00028949,2]
[399006808,1766065847765,-500.0,0.00028949,2]
[399006810,1766065847774,-500.0,0.00028949,2]
[399006812,1766065847783,-500.0,0.00028949,2]
[399006814,1766065847792,-500.0,0.00028949,2]
[399006815,1766065847800,-500.0,0.00028949,2]
[399006817,1766065847809,-500.0,0.00028949,2]
[399006819,1766065847818,-500.0,0.00028949,2]
[399006821,1766065847827,-500.0,0.00028949,2]
[399006823,1766065847836,-500.0,0.00028949,2]
[399006825,1766065847845,-500.0,0.00028949,2]
[399006827,1766065847854,-307.54440043,0.00028949,2]
[399006829,1766065847863,-183.91993261,0.00029008,30]
[399006831,1766065847874,-235.77460328,0.00029029,102]
[399006834,1766065847883,-458.2552902,0.00029038,102]
[399006835,1766065847893,-273.19444444,0.00029038,102]
[399006838,1766065847905,-458.9,0.000293,7]
[399006840,1766065847914,-1041.66666667,0.00029668,2]
[399006842,1766065847923,-302.23482017,0.00029739,102]
[399006844,1766065847932,-204.82449094,0.00029878,110]
[399006846,1766065847942,-458.2552902,0.00029888,110]
[399006847,1766065847950,-273.19444444,0.00029888,110]
[399006849,1766065847959,-13223.25745288,0.0003001,120]
[399006865,1766065848097,-19009.99999998,0.0003001,120]
[399008127,1766065920798,150.0,8.318e-05,2]
[399008128,1766065921212,150.0,8.714e-05,2]
[399008129,1766065921625,150.0,9.111e-05,2]
[399008130,1766065922038,154.3,9.507e-05,2]
[399008131,1766065922455,192.88,9.903e-05,2]
[399008132,1766065923332,231.45,0.00010299,2]
[399008133,1766065923755,270.03,0.00010695,2]
[399008134,1766065924167,308.6,0.00011091,2]
[399008135,1766065924572,347.18,0.00011487,2]
[399008136,1766065924987,385.75,0.00011883,2]
[399008137,1766065951764,169.05,0.0001,2]
[399008138,1766065994285,150.0,8.291e-05,2]
[399008139,1766065994740,150.0,8.686e-05,2]
[399008140,1766065995334,150.0,9.081e-05,2]
[399008141,1766065995646,150.0,9.476e-05,2]
[399008142,1766066003294,501.0,0.00018,2]
[399008143,1766066054165,3171.3,0.00018,2]
[399008144,1766066183318,170.63212103,0.00018,2]
[399008145,1766066317394,2863.63578913,0.0002,2]
[399008146,1766066409484,333.33333333,0.0002,2]
[399008147,1766066448051,1316.41259689,0.00014,2]
[399008148,1766066448824,1316.41259689,0.00014351,4]
[399008149,1766066449457,1316.41259689,0.00014701,6]
[399008150,1766066450250,1316.41259689,0.00015052,8]
[399008151,1766066450877,1316.41259689,0.00015403,10]
[399008152,1766066451703,220.97789309,0.00015754,13]
[399008153,1766066451729,1000.0,0.00015754,13]
[399008154,1766066451755,95.4347038,0.00015754,13]
[399008155,1766066452277,904.5652962,0.00016104,15]
[399008156,1766066452301,411.84730069,0.00016104,15]
[399008157,1766066453045,1316.41259689,0.00016455,17]
[399008158,1766066453704,1316.41259689,0.00016806,19]
[399008159,1766066454376,1316.41259689,0.00017156,21]
[399008160,1766066455145,1316.41259689,0.00017507,24]
[399008161,1766066455807,1316.41259689,0.00017858,26]
[399008162,1766066456625,1316.41259689,0.00018208,28]
[399008163,1766066457348,1316.41259689,0.00018559,30]
[399008164,1766066457996,785.12182177,0.0001891,32]
[399008165,1766066458739,-531.29077512,0.0001891,32]
[399008166,1766066458768,-1316.41259689,0.00019261,35]
[399008167,1766066459322,1316.41259689,0.00019611,37]
[399008168,1766066460052,1316.41259689,0.00019962,39]
[399008177,1766066689598,-1011.41076904,0.00020313,41]
[399008190,1766066715692,1034.97774231,0.0002,2]
[399008191,1766066769285,287.03050463,0.0002,2]
[399008192,1766066805282,-166.85901653,0.00020232,2]
[399008193,1766066833342,1201.7047788,0.0002,2]
[399008194,1766066888462,191.35366975,0.0002,2]
[399008195,1766066893654,-193.54,0.00020232,2]
[399008196,1766066895620,-301.57010704,0.00020232,2]
[399008197,1766066897683,-255.45802274,0.00020232,2]
[399008198,1766066963095,-2679.32387162,0.00020232,2]
[399008199,1766066982572,-189.3361304,0.00020232,2]
[399008200,1766066984028,-304.18905342,0.00020232,2]
[399008201,1766066986394,-320.97959443,0.00020232,2]
[399008202,1766066988276,-226.6706763,0.00020232,2]
[399008203,1766066990288,-287.84965235,0.00020232,2]
[399008204,1766066992363,-74.22387517,0.00020232,2]
[399008205,1766066992386,-99.12666021,0.00020272,2]
[399008206,1766067006016,5000.0,0.0002,2]
[399008207,1766067009897,-163.66884929,0.00020272,2]
[399008208,1766067011407,-211.11128396,0.00020272,2]
[399008209,1766067014502,-302.82983736,0.00020272,2]
[399008210,1766067029357,4808.65633025,0.0002,2]
[399008211,1766067030418,-191.34366975,0.0002,2]
[399008243,1766067037978,-48.39002939,0.00020272,2]
[399008244,1766067037988,-50.87333979,0.00020272,2]
[399008245,1766067037998,-172.89531054,0.00020853,5]
[399008246,1766067038008,-300.0,0.00021432,2]
[399008247,1766067038018,-300.0,0.00021433,10]
[399008248,1766067038028,-300.0,0.00021433,10]
[399008249,1766067038038,-300.0,0.00021433,10]
[399008250,1766067038047,-300.0,0.00021433,10]
[399008251,1766067038056,-300.0,0.00021433,10]
[399008252,1766067038066,-300.0,0.00021433,10]
[399008253,1766067038075,-300.0,0.00021433,10]
[399008254,1766067038085,-300.0,0.00021433,10]
[399008255,1766067038094,-300.0,0.00021433,10]
[399008256,1766067038103,-268.14090283,0.00021433,10]
[399008265,1766067039898,-31.85909717,0.00021433,10]